fUST/lending_fUST_20250524
["ID","MTS","AMOUNT","RATE_DAILY","PERIOD"]
[362137522,1748025046689,-430.0,0.00018979,2]
[362137523,1748025046699,-430.0,0.00018979,2]
[362137524,1748025046710,-430.0,0.00018979,2]
[362137525,1748025046721,-430.0,0.00018979,2]
[362137526,1748025046731,-430.0,0.0001898,2]
[362137527,1748025046741,-430.0,0.0001898,2]
[362137528,1748025046752,-96.41381614,0.0001898,2]
[362137529,1748025046766,-333.58618386,0.0001898,2]
[362137530,1748025046775,-430.0,0.0001898,2]
[362137531,1748025046785,-439.31494667,0.0001898,2]
[362137532,1748025046795,-500.0,0.0001898,2]
[362137533,1748025046805,-430.0,0.0001898,2]
[362137534,1748025046815,-273.50097876,0.0001898,2]
[362137535,1748025046824,-430.0,0.0001898,2]
[362137536,1748025046835,-422.84889649,0.0001898,2]
[362137544,1748025638180,393401.48737497,0.00015,2]
[362137545,1748025640396,-298.6977693,0.00015,2]
[362137546,1748025643087,-276.87925878,0.00015,2]
[362137547,1748025645818,-170.07335641,0.00015,2]
[362137548,1748025648495,-347.44910661,0.00015,2]
[362137549,1748025651369,-326.16631396,0.00015,2]
[362137550,1748025655687,-264.70990441,0.00015,2]
[362137551,1748025658647,-151.99932363,0.00015,2]
[362137552,1748025662307,-205.2528355,0.00015,2]
[362137553,1748025665430,-178.0,0.00014999,2]
[362137554,1748025665452,-52.39935548,0.00015,2]
[362137555,1748025668899,-235.59438988,0.00015,2]
[362137556,1748025672501,-319.60498314,0.00015,2]
[362137557,1748025675919,-174.99849144,0.00015,2]
[362137558,1748025677997,-255.63193988,0.00015,2]
[362137559,1748025680001,-170.2532321,0.00015,2]
[362137560,1748025683691,-240.65802765,0.00015,2]
[362137561,1748025748961,431.06,0.00012329,2]
[362137562,1748025759384,359.22,0.00012329,2]
[362137563,1748025769821,299.35,0.00012329,2]
[362137564,1748025780288,249.46,0.00012329,2]
[362137565,1748025791332,207.88,0.00012329,2]
[362137566,1748025801752,173.23,0.00012329,2]
[362137567,1748025805253,-259.57282763,0.00014849,2]
[362137568,1748025807500,-263.22628436,0.00014849,2]
[362137569,1748025810230,-172.58301585,0.00014849,2]
[362137570,1748025811710,-338.43435853,0.00014849,2]
[362137571,1748025812174,866.2,0.00012329,2]
[362137572,1748025814390,-158.96908279,0.00014849,2]
[362137573,1748025814414,-68.9947683,0.00014999,2]
[362137574,1748025817039,-152.0,0.00014999,2]
[362137575,1748025818348,-193.60574598,0.00014999,2]
[362137576,1748025819792,-85.39948572,0.00014999,2]
[362137577,1748025819816,-95.41812407,0.00014999,2]
[362137578,1748025821366,-154.7466949,0.00014999,2]
[362137579,1748025824086,-249.83518103,0.00014999,2]
[362137580,1748025824109,-38.26365161,0.00014999,2]
[362137581,1748025827231,-152.0,0.00014999,2]
[362137582,1748025828657,-160.0,0.00014999,2]
[362137583,1748025830607,-169.047256,0.00014849,2]
[362137584,1748025832609,-208.35025752,0.00014849,2]
[362137586,1748025857384,-163.579497,0.00013699,2]
[362137587,1748025857407,-1962.420503,0.00014849,2]
[362137588,1748025858484,-43.23120425,0.00014849,2]
[362137589,1748025858509,-257.69302824,0.00014999,2]
[362137590,1748025858532,-13.72090801,0.00014999,2]
[362137591,1748025860202,-321.34927072,0.00014999,2]
[362137592,1748025861899,-114.92982127,0.00014999,2]
[362137593,1748025861929,-66.40127108,0.00014999,2]
[362137594,1748025864058,-202.69353878,0.00014999,2]
[362137595,1748025868808,-166.22773546,0.00014999,2]
[362137596,1748025870297,-64.67745468,0.00014999,2]
[362137597,1748025870344,-132.35356732,0.00014999,2]
[362137598,1748025871797,-151.71809536,0.00014999,2]
[362137599,1748025875303,-200.0,0.00014849,2]
[362137600,1748025877555,-162.77430179,0.00014849,2]
[362137601,1748025880527,-152.0,0.00014849,2]
[362137602,1748025881975,-241.80872783,0.00014849,2]
[362137603,1748025883455,-162.22875713,0.00014849,2]
[362137604,1748025884961,-200.06862657,0.00014849,2]
[362137605,1748025888059,-328.72610313,0.00014849,2]
[362137606,1748025889720,-380.70569851,0.00014849,2]
[362137607,1748025891293,-92.36309837,0.00014849,2]
[362137608,1748025906878,-193.53855605,0.00014849,2]
[362137609,1748025909517,-308.03846108,0.00014849,2]
[362137610,1748025911087,-173.157137,0.00014849,2]
[362137611,1748025914752,-164.83253891,0.00014849,2]
[362137612,1748025916414,-249.64860836,0.00014849,2]
[362137613,1748025917939,-319.81311882,0.00014849,2]
[362137614,1748025921590,-163.33083919,0.00014849,2]
[362137615,1748025926557,-300.0,0.00014849,2]
[362137624,1748026001097,-446.9526152,0.00014271,2]
[362137625,1748026001120,-33.0473848,0.00014849,2]
[362137631,1748026134062,-1739.34602389,0.00014652,2]
[362137632,1748026134084,-3346.65397611,0.000148,2]
[362137921,1748026232537,-6.34602389,0.000148,2]
[362137922,1748026232547,-500.0,0.00014998,2]
[362137923,1748026232557,-500.0,0.00014998,2]
[362137924,1748026232566,-351.38610034,0.00014998,2]
[362137925,1748026232576,-232.31869235,0.00014998,2]
[362137926,1748026232585,-300.0,0.00014998,2]
[362137927,1748026232595,-300.0,0.00014998,2]
[362137928,1748026232607,-1200.0,0.00014998,2]
[362137929,1748026232616,-50000.0,0.00014999,2]
[362137930,1748026232626,-215.92833732,0.00014999,2]
[362137932,1748026232637,-500.0,0.00014999,2]
[362137933,1748026232647,-500.0,0.00014999,2]
[362137934,1748026232657,-500.0,0.00014999,2]
[362137935,1748026232667,-500.0,0.00014999,2]
[362137936,1748026232678,-500.0,0.00014999,2]
[362137937,1748026232689,-500.0,0.00014999,2]
[362137938,1748026232699,-500.0,0.00014999,2]
[362137939,1748026232709,-500.0,0.00014999,2]
[362137940,1748026232719,-500.0,0.00014999,2]
[362137941,1748026232729,-313.18127324,0.00014999,2]
[362137942,1748026232739,-2537.48863064,0.00015,3]
[362137943,1748026232750,-152040.35944815,0.00015,2]
[362137944,1748026232831,-93041.69801655,0.00015,2]
[362137945,1748026232844,-33778.27088284,0.00015,2]
[362137950,1748026238265,-312.31654113,0.00015,2]
[362138186,1748026246552,-297.27025,0.00015,2]
[362138193,1748026323920,-3072.0,0.0001485,2]
[362138210,1748027055306,-204.447257,0.00013999,2]
[362138211,1748027058647,-186.42162141,0.00013999,2]
[362138212,1748027061687,-210.27881232,0.00013999,2]
[362138213,1748027063292,-60.20094307,0.00013999,2]
[362138267,1748027432458,-163.579497,0.00013699,2]
[362138269,1748027432468,-187.350244,0.00013995,2]
[362138271,1748027432478,-168.4474058,0.00013999,2]
[362138273,1748027432487,-851.21485162,0.00014897,2]
[362138275,1748027432496,-300.0,0.00014993,2]
[362138277,1748027432506,-960.0,0.00014993,2]
[362138280,1748027432515,-500.0,0.00014994,2]
[362138283,1748027432525,-500.0,0.00014994,2]
[362138285,1748027432535,-500.0,0.00014994,2]
[362138287,1748027432544,-500.0,0.00014994,2]
[362138289,1748027432553,-500.0,0.00014994,2]
[362138291,1748027432563,-500.0,0.00014994,2]
[362138293,1748027432573,-217.62625734,0.00014994,2]
[362138294,1748027432583,-500.0,0.00014994,2]
[362138296,1748027432592,-500.0,0.00014994,2]
[362138298,1748027432601,-555.72473826,0.00014994,2]
[362138300,1748027432611,-500.0,0.00014994,2]
[362138302,1748027432620,-500.0,0.00014994,2]
[362138303,1748027432629,-500.0,0.00014994,2]
[362138304,1748027432638,-500.0,0.00014994,2]
[362138306,1748027432648,-623.50201036,0.00014994,2]
[362138309,1748027432657,-500.0,0.00014994,2]
[362138311,1748027432666,-500.0,0.00014994,2]
[362138312,1748027432675,-500.0,0.00014994,2]
[362138314,1748027432685,-500.0,0.00014994,2]
[362138316,1748027432694,-500.0,0.00014994,2]
[362138318,1748027432703,-500.0,0.00014994,2]
[362138320,1748027432713,-500.0,0.00014994,2]
[362138322,1748027432723,-500.0,0.00014994,2]
[362138324,1748027432732,-179.31132688,0.00014994,2]
[362138326,1748027432742,-500.0,0.00014994,2]
[362138328,1748027432752,-7053.24366874,0.00014995,2]
[362138330,1748027432763,-553.83063043,0.00014995,2]
[362138332,1748027432781,-7404.6358951,0.00014995,2]
[362138360,1748027438366,-6538.8368079,0.00014995,2]
[362138544,1748027443619,-500.0,0.00014994,2]
[362138547,1748027443630,-786.63999999,0.00014995,2]
[362138552,1748027443672,-27662.81299784,0.00014995,2]
[362138553,1748027443682,-348.19655042,0.00014997,2]
[362138554,1748027443691,-500.0,0.00014999,2]
[362138555,1748027443701,-500.0,0.00014999,2]
[362138556,1748027443710,-500.0,0.00014999,2]
[362138557,1748027443720,-500.0,0.00014999,2]
[362138558,1748027443731,-500.0,0.00014999,2]
[362138559,1748027443741,-500.0,0.00014999,2]
[362138560,1748027443751,-206.95706469,0.00014999,2]
[362138561,1748027443760,-500.0,0.00014999,2]
[362138562,1748027443769,-500.0,0.00014999,2]
[362138563,1748027443779,-500.0,0.00014999,2]
[362138565,1748027443789,-500.0,0.00014999,2]
[362138566,1748027443798,-534.22689127,0.00014999,2]
[362138567,1748027443810,-1268.74431532,0.00015,3]
[362138568,1748027443820,-47221.26897434,0.00015,2]
[362138571,1748027446565,-39631.04171227,0.00015,2]
[362138572,1748027446668,-4125.75446281,0.00015,2]
[362138573,1748027446794,-4909.75003313,0.00015,2]
[362138578,1748027566968,-500.0,0.00024,120]
[362138579,1748027566996,-500.0,0.00024,120]
[362138580,1748027567022,-500.0,0.00024,120]
[362138581,1748027567047,-500.0,0.00024,120]
[362138582,1748027567073,-500.0,0.00024,120]
[362138583,1748027567098,-500.0,0.00024,120]
[362138584,1748027567123,-500.0,0.00024,120]
[362138585,1748027567148,-500.0,0.00024,120]
[362138586,1748027567174,-500.0,0.00024,120]
[362138587,1748027567200,-500.0,0.00024,120]
[362138588,1748027567225,-500.0,0.00024,120]
[362138589,1748027567250,-500.0,0.00024,120]
[362138590,1748027567276,-500.0,0.00024,120]
[362138591,1748027567301,-500.0,0.00024,120]
[362138592,1748027567327,-500.0,0.00024,120]
[362138593,1748027567357,-3795.4393931,0.00025,120]
[362138594,1748027567384,-1000.0,0.00025,120]
[362138595,1748027567410,-833.5747695,0.00025,120]
[362138596,1748027567439,-200.0,0.00025096,120]
[362138597,1748027567469,-200.0,0.00025186,120]
[362138598,1748027567495,-200.0,0.00025227,120]
[362138599,1748027567520,-200.0,0.00025228,120]
[362138600,1748027567546,-200.0,0.00025278,120]
[362138601,1748027567571,-200.0,0.00025313,120]
[362138602,1748027567596,-200.0,0.00025315,120]
[362138603,1748027567622,-200.0,0.00025359,120]
[362138604,1748027567648,-200.0,0.00025363,120]
[362138605,1748027567674,-200.0,0.0002538,120]
[362138606,1748027567700,-200.0,0.00025398,120]
[362138607,1748027567725,-200.0,0.00025445,120]
[362138608,1748027567751,-200.0,0.00025498,120]
[362138609,1748027567778,-200.0,0.00025609,120]
[362138610,1748027567806,-200.0,0.000257,120]
[362138611,1748027567837,-200.0,0.00025729,120]
[362138612,1748027567874,-759.74773404,0.00025876,120]
[362138613,1748027567911,-200.0,0.00025931,120]
[362138614,1748027567941,-200.0,0.0002596,120]
[362138615,1748027567975,-200.0,0.00025996,120]
[362138616,1748027568022,-4897.53272175,0.00026,120]
[362138617,1748027568063,-1025.0,0.00026,120]
[362138618,1748027568105,-200.0,0.00026049,120]
[362138619,1748027568142,-200.0,0.00026052,120]
[362138620,1748027568177,-200.0,0.00026063,120]
[362138621,1748027568236,-261.444,0.000262,120]
[362138622,1748027568274,-151.0,0.000262,120]
[362138623,1748027568308,-1005.0,0.00026259,120]
[362138624,1748027568336,-500.0,0.00026278,120]
[362138625,1748027568366,-106500.0,0.00026279,120]
[362138626,1748027568397,-5723.0,0.00026286,120]
[362138627,1748027568432,-3861648.26138161,0.0002633,120]
[362138628,1748027575002,-234800.3729699,0.00026183,30]
[362138629,1748027575031,-6168.26841754,0.00026183,30]
[362138630,1748027575059,-5537.73572915,0.00026183,30]
[362138631,1748027575089,-10046.0,0.00026183,30]
[362138632,1748027575119,-1242.0,0.00026183,32]
[362138633,1748027583119,-968706.66861839,0.0002633,120]
[362138634,1748027583149,-750.98077427,0.0002639,120]
[362138635,1748027583178,-1611.0,0.000264,120]
[362138636,1748027583207,-200.0,0.00026421,120]
[362138637,1748027583234,-1750.0,0.00026445,120]
[362138638,1748027583262,-200.0,0.00026477,120]
[362138639,1748027583293,-200.0,0.00026832,120]
[362138640,1748027583321,-200.0,0.00026869,120]
[362138641,1748027583349,-200.0,0.00026893,120]
[362138642,1748027583379,-1022.0,0.00027,120]
[362138643,1748027583412,-241.10197,0.00027,120]
[362138644,1748027583439,-200.0,0.00027,120]
[362138645,1748027583470,-200.0,0.00027,120]
[362138646,1748027583497,-382.03752,0.00027,120]
[362138647,1748027583526,-200.0,0.00027003,120]
[362138648,1748027583555,-200.0,0.00027011,120]
[362138649,1748027583582,-200.0,0.00027051,120]
[362138650,1748027583609,-200.0,0.00027058,120]
[362138651,1748027583638,-200.0,0.00027297,120]
[362138652,1748027583670,-241.10197,0.000273,120]
[362138653,1748027583699,-200.0,0.0002736,120]
[362138654,1748027583726,-1104.22783275,0.0002739,120]
[362138655,1748027583752,-7147.44940843,0.00027397,120]
[362138656,1748027583778,-700.0,0.00027397,120]
[362138657,1748027583806,-700.0,0.00027397,120]
[362138658,1748027583832,-700.0,0.00027397,120]
[362138659,1748027583861,-700.0,0.00027397,120]
[362138660,1748027583888,-442.7997065,0.00027397,120]
[362138661,1748027583921,-1010.0,0.00027397,120]
[362138662,1748027583950,-6250.0,0.00027397,120]
[362138883,1748028511848,11980.2961515,0.00025897,120]
[362138906,1748028632622,-163.579497,0.00013699,2]
[362138908,1748028632632,-91.290503,0.000149,2]
[362138913,1748028632676,-101.90335334,0.000149,2]
[362138915,1748028632685,-744.81299515,0.000149,2]
[362138917,1748028632695,-300.0,0.00014998,2]
[362138919,1748028632705,-300.0,0.00014998,2]
[362138921,1748028632714,-300.0,0.00014998,2]
[362138923,1748028632724,-13432.92663074,0.00014999,2]
[362138925,1748028632733,-402.61133449,0.00014999,2]
[362138928,1748028632744,-500.0,0.00014999,2]
[362138930,1748028632753,-242.14570299,0.00014999,2]
[362138932,1748028632763,-500.0,0.00014999,2]
[362138934,1748028632775,-500.0,0.00014999,2]
[362138936,1748028632786,-500.0,0.00014999,2]
[362138938,1748028632795,-500.0,0.00014999,2]
[362138940,1748028632805,-8347.04995818,0.00015,2]
[362138973,1748028646764,-4134.84466758,0.00015,2]
[362138974,1748028646777,-5159.01715628,0.00015,2]
[362138976,1748028647013,-499.99913388,0.00015,2]
[362138977,1748028656537,5048.520325,0.00027397,120]
[362138985,1748028782202,262.33,0.00012329,2]
[362138989,1748028840485,-874.0,0.00014699,2]
[362138990,1748028851034,-122.694093,0.00014699,2]
[362138991,1748028873981,97.305907,0.00014699,2]
[362138992,1748028908972,-799.718777,0.00014699,2]
[362138993,1748028915454,0.281223,0.00012329,2]
[362138994,1748028915479,786.728777,0.00012329,2]
[362138995,1748028919303,-220.0,0.00014699,2]
[362138996,1748028941072,10000.0,0.00025896,30]
[362138997,1748028964541,-220.0,0.00014699,2]
[362138998,1748028978398,-500.0,0.00014699,2]
[362138999,1748028986311,-65.322215,0.00014699,2]
[362139000,1748029010088,-180.03912739,0.00014699,2]
[362139002,1748029039580,-180.03912739,0.00014652,2]
[362139003,1748029041642,-179.23776153,0.00014652,2]
[362139004,1748029043049,-159.3640302,0.00014652,2]
[362139005,1748029045738,-22.06625724,0.00014652,2]
[362139006,1748029045762,-273.52668646,0.00014699,2]
[362139007,1748029046802,-253.22418015,0.00014699,2]
[362139008,1748029054012,46.77581985,0.00014699,2]
[362139009,1748029055919,-273.52668646,0.00014699,2]
[362139010,1748029099606,-273.52668646,0.00014699,2]
[362139011,1748029115721,-300.0,0.00014699,2]
[362139012,1748029144554,-273.52668646,0.00014699,2]
[362139013,1748029189833,-273.52668646,0.00014699,2]
[362139014,1748029234784,-273.52668646,0.00014699,2]
[362139015,1748029279739,-273.52668646,0.00014699,2]
[362139016,1748029306793,-273.52668646,0.00013998,2]
[362139017,1748029310605,-210.90385956,0.00013998,2]
[362139018,1748029312151,-254.21037318,0.00013998,2]
[362139019,1748029312174,-49.22311124,0.00014699,2]
[362139020,1748029314091,-141.9202713,0.00014699,2]
[362139021,1748029369703,-164.67862398,0.00014699,2]
[362139022,1748029416461,-164.67862398,0.00014699,2]
[362139023,1748029447849,-2220.78171055,0.0001465,2]
[362139024,1748029447879,-129.21828945,0.00014699,2]
[362139025,1748029455123,-164.67862398,0.00014552,2]
[362139026,1748029457807,-138.83147567,0.00014552,2]
[362139027,1748029457834,-64.31893787,0.00014699,2]
[362139028,1748029459892,-200.05319341,0.00014699,2]
[362139029,1748029505119,-200.05319341,0.00014552,2]
[362139030,1748029507580,214600.0,0.00027397,120]
[362139031,1748029507700,-296.05895351,0.00014552,2]
[362139032,1748029510353,-165.8948228,0.00014552,2]
[362139033,1748029515721,-166.94641052,0.00014552,2]
[362139034,1748029517309,-193.44494208,0.00014552,2]
[362139035,1748029520366,-241.95412713,0.00014552,2]
[362139036,1748029522130,-249.77039757,0.00014552,2]
[362139037,1748029522154,-50.22960243,0.00014699,2]
[362139039,1748029523645,-215.54915997,0.00014699,2]
[362139041,1748029587978,-1181.0,0.00014552,2]
[362139042,1748029594729,-105.49723772,0.00014552,2]
[362139043,1748029594755,-110.05192225,0.00014699,2]
[362139044,1748029596171,-181.0,0.00014699,2]
[362139052,1748029639800,-163.579497,0.00013699,2]
[362139053,1748029639826,-17.420503,0.00014552,2]
[362139060,1748029641357,-208.71843324,0.00014552,2]
[362139061,1748029643111,-223.5143695,0.00014552,2]
[362139062,1748029645645,-239.19050477,0.00014552,2]
[362139063,1748029647072,-192.15618949,0.00014552,2]
[362139064,1748029647096,-36.93524931,0.00014699,2]
[362139065,1748029650605,-241.33183892,0.00014699,2]
[362139066,1748029684694,-241.33183892,0.00014699,2]
[362139068,1748029690166,3786.390243,0.00027397,120]
[362139119,1748029831903,-187.3502451,0.00013999,2]
[362139121,1748029831913,-238.265334,0.00014699,2]
[362139123,1748029831923,-695.21463179,0.00014899,2]
[362139125,1748029831932,-237.3846354,0.00014993,2]
[362139127,1748029831941,-300.0,0.00014996,2]
[362139129,1748029831951,-300.0,0.00014996,2]
[362139131,1748029831961,-1200.0,0.00014996,2]
[362139133,1748029831970,-16404.32611927,0.00014997,2]
[362139135,1748029831982,-15060.01748018,0.00014997,2]
[362139137,1748029831992,-300.0,0.00014997,2]
[362139139,1748029832001,-664.61608741,0.00014999,29]
[362139141,1748029832011,-9569.47087397,0.00015,2]
[362139143,1748029832022,-2199.06199191,0.00015,2]
[362139187,1748029837766,-500.0,0.00014996,2]
[362139188,1748029837776,-500.0,0.00014996,2]
[362139189,1748029837787,-374.49646234,0.00014996,2]
[362139190,1748029837798,-500.0,0.00014996,2]
[362139191,1748029837808,-300.0,0.00014999,2]
[362139192,1748029837818,-2410.08514834,0.00015,2]
[362139193,1748029837829,-4771.85272007,0.00015,2]
[362139338,1748029843012,-3100.0,0.00015,2]
[362139365,1748029963094,252.0848015,0.00026,120]
[362139366,1748029971131,226.33042163,0.00027,120]
[362139367,1748029988549,206.85652262,0.00027,120]
[362139368,1748030002639,354.48958467,0.00027,120]
[362139369,1748030011723,395.21072768,0.00027,120]
[362139873,1748030403369,-214.438801,0.00014699,2]
[362139874,1748030403396,-26.89303792,0.00014699,2]
[362139876,1748030405481,-214.438801,0.00014699,2]
[362139884,1748030408709,-152.0,0.00014699,2]
[362139891,1748030410356,-3.36859481,0.00014699,2]
[362139976,1748030434721,-156.7796826,0.00014699,2]
[362140099,1748030479708,-156.7796826,0.00014699,2]
[362140130,1748030524769,-156.7796826,0.00014699,2]
[362140146,1748030569749,-156.7796826,0.00014699,2]
[362140171,1748030615315,-156.7796826,0.00014699,2]
[362140204,1748030659528,-156.7796826,0.00013699,2]
[362140235,1748030704744,-8.0245424,0.00013699,2]
[362140236,1748030704770,-143.9754576,0.00014699,2]
[362140237,1748030706855,-19.7460844,0.00014699,2]
[362140238,1748030706881,-189.90770832,0.000149,2]
[362140239,1748030706906,-45.44922313,0.000149,2]
[362140245,1748030708954,-207.1967708,0.00013562,2]
[362140256,1748030711031,-104.95150661,0.00013562,2]
[362140289,1748030760287,-163.721542,0.00014699,2]
[362140290,1748030760312,-347.278458,0.00014751,2]
[362140340,1748030809318,2839.792682,0.00027397,120]
[362140373,1748030862175,33399.62960105,0.00025896,30]
[362140475,1748031031980,-163.721542,0.00014699,2]
[362140477,1748031031990,-602.63164996,0.000149,2]
[362140478,1748031032001,-151.92616664,0.000149,2]
[362140479,1748031032011,-300.0,0.0001499,2]
[362140480,1748031032022,-300.0,0.0001499,2]
[362140481,1748031032031,-300.0,0.0001499,2]
[362140482,1748031032042,-300.0,0.0001499,2]
[362140483,1748031032052,-207.4,0.00014991,2]
[362140484,1748031032063,-1200.0,0.00014991,2]
[362140485,1748031032073,-18286.4263268,0.00014992,2]
[362140486,1748031032083,-13138.33412431,0.00014992,2]
[362140584,1748031037988,-272.5430213,0.00014992,2]
[362140585,1748031038040,-21754.46293733,0.00014992,2]
[362140586,1748031038053,-3509.77906148,0.00014992,2]
[362140715,1748031043204,-4206.8744175,0.00014992,2]
[362140742,1748031046149,-3622.44647815,0.00014992,2]
[362140744,1748031046159,-500.0,0.00014999,2]
[362140746,1748031046169,-500.0,0.00014999,2]
[362140748,1748031046179,-323.95882389,0.00014999,2]
[362140750,1748031046189,-500.0,0.00014999,2]
[362140752,1748031046199,-500.0,0.00014999,2]
[362140754,1748031046210,-194.86994529,0.00014999,2]
[362140756,1748031046220,-500.0,0.00014999,2]
[362140758,1748031046231,-500.0,0.00014999,2]
[362140760,1748031046241,-500.0,0.00014999,2]
[362140762,1748031046251,-634.37215766,0.00015,3]
[362140764,1748031046261,-9711.24655403,0.00015,2]
[362140779,1748031059140,-290.2095233,0.00014499,2]
[362140782,1748031061352,-298.6558789,0.00014499,2]
[362140785,1748031062862,-186.28358166,0.00014499,2]
[362140789,1748031065924,-154.538006,0.00014499,2]
[362140792,1748031068522,-170.63,0.00014499,2]
[362140815,1748031098469,10000.0,0.00027397,120]
[362140843,1748031156548,2000.0,0.00027397,120]
[362140859,1748031263454,-360.2060169,0.00014211,2]
[362140860,1748031265552,-208.36463291,0.00014211,2]
[362140861,1748031268176,-247.00956722,0.00014211,2]
[362140864,1748031270691,-157.48362138,0.00014211,2]
[362140865,1748031272172,-236.55050028,0.00014211,2]
[362140881,1748031463818,-165.01443842,0.00014082,2]
[362140882,1748031465440,-243.10366515,0.00014082,2]
[362140883,1748031467459,-279.29838224,0.00014082,2]
[362140884,1748031469711,-159.56083352,0.00014082,2]
[362140885,1748031471735,-1125.68308206,0.00014082,2]
[362140886,1748031473953,-192.96784787,0.00014082,2]
[362140887,1748031475452,-186.17965406,0.00014082,2]
[362140888,1748031478041,-333.98276388,0.00014082,2]
[362140889,1748031479491,-22214.2093328,0.00014082,2]
[362140890,1748031479513,-378.7906672,0.00014499,2]
[362140891,1748031524548,-287.72746663,0.00014082,2]
[362140892,1748031526657,-225.76962201,0.00014082,2]
[362140893,1748031530333,-177.38913363,0.00014082,2]
[362140894,1748031533450,-281.26614629,0.00014082,2]
[362140895,1748031535316,-155.0,0.00014082,2]
[362140896,1748031538300,-222.10974381,0.00014082,2]
[362140897,1748031539727,-943.79106493,0.00014082,2]
[362140898,1748031539756,-30.18080553,0.00014355,2]
[362140899,1748031541687,-259.04573652,0.00014355,2]
[362140900,1748031543203,-177.38913363,0.00014355,2]
[362140901,1748031545715,-299.94833425,0.00014355,2]
[362140902,1748031547756,-335.04014938,0.00014355,2]
[362140903,1748031550342,-353.13267781,0.00014355,2]
[362140904,1748031554989,-2824.0,0.00014355,2]
[362140924,1748031824336,-164.804225,0.00013699,2]
[362140925,1748031824358,-2824.2952666,0.00013978,2]
[362140926,1748031824382,-713.26316288,0.00014211,2]
[362140927,1748031824545,-707.61397084,0.00014499,2]
[362140928,1748031824570,-122.02337468,0.00014699,2]
[362140929,1748031867530,2129.844511,0.00027397,120]
[362140930,1748031891477,-4032.0,0.00014552,2]
[362140932,1748032021017,-4531.67905276,0.00013838,2]
[362140933,1748032021044,-180.103008,0.00013978,2]
[362140934,1748032021242,-172.01544979,0.0001425,2]
[362140935,1748032021270,-116.20248945,0.00014699,2]
[362140937,1748032085763,-5000.0,0.00014552,2]
[362140985,1748032232170,-542.8912886,0.00013998,2]
[362140998,1748032232335,-657.1087114,0.00013998,2]
[362140999,1748032232345,-10000.0,0.00013999,2]
[362141000,1748032232355,-229.0,0.00014551,2]
[362141001,1748032232364,-300.0,0.00014551,2]
[362141002,1748032232375,-300.0,0.00014551,2]
[362141003,1748032232385,-5000.0,0.00014552,2]
[362141004,1748032232396,-151.92616663,0.000149,2]
[362141005,1748032232406,-153.47136468,0.000149,2]
[362141006,1748032232415,-207.4,0.00014991,2]
[362141007,1748032232425,-300.0,0.00014998,2]
[362141009,1748032232435,-33152.18711709,0.00015,2]
[362141021,1748032232446,-1844.61460193,0.00015,3]
[362141042,1748032238264,-500.0,0.00014999,2]
[362141043,1748032238274,-108.48178832,0.00014999,2]
[362141044,1748032238287,-391.51821168,0.00014999,2]
[362141045,1748032238297,-62.15422377,0.00014999,2]
[362141046,1748032238319,-274.25473793,0.00014999,2]
[362141047,1748032238329,-500.0,0.00014999,2]
[362141048,1748032238339,-500.0,0.00014999,2]
[362141049,1748032238350,-476.77117673,0.00014999,2]
[362141050,1748032238359,-1539.05311394,0.00015,3]
[362141062,1748032241920,-1812.65138411,0.00015,3]
[362141063,1748032241930,-40252.64913419,0.00015,2]
[362141086,1748032246652,-2774.67364578,0.00015,2]
[362141087,1748032246666,-543.2,0.00015,2]
[362141106,1748032349898,-319.037908,0.00014699,2]
[362141107,1748032349920,-242.75510898,0.000149,2]
[362141108,1748032349942,-527.30269368,0.000149,2]
[362141109,1748032350102,-280.8837276,0.00014999,2]